[Event "HUN-chT Youth 2019"]
[Site "Budapest"]
[Date "2019.10.27"]
[Round "2.32"]
[White "Czumbel, Peter"]
[Black "Leszko, Bence"]
[Result "1/2-1/2"]
[ECO "A04"]
[WhiteElo "2021"]
[BlackElo "2201"]
[Annotator "NA"]
[PlyCount "132"]
[EventDate "2019.10.26"]
[EventType "team-tourn"]
[EventCountry "HUN"]
[SourceTitle "playchess.com"]
[Source "ChessBase"]
[SourceQuality "1"]
[TimeControl "5400+30"]

1. Nf3 {[%emt 0:00:00]} e6 {[%emt 0:00:00]} 2. g3 {[%emt 0:00:00]} b6 {[%emt 0:00:00]} 3. Bg2 {[%emt 0:00:00]} Bb7 {[%emt 0:00:00]} 4. d3 {[%emt 0:00:14]} (4. O-O g6 5. c4 Bg7 6. Nc3 Nf6 7. Re1 d5 8. cxd5 Nxd5 9. e4 Nxc3 10. bxc3 c5 11. d4 Nc6 12. Bg5 Ne7 13. Qa4+ Bc6 {1-0 (38) Halkias,S (2552)-Fressinet,L (2652) Skopje 2019}) 4... f5 {[%emt 0:00:24]} 5. e4 {[%emt 0:05:26]} fxe4 {[%emt 0:00:35]} 6. Ng5 {[%emt 0:00:38] A04: Unusual lines after 1 Nf3 and King's Indian Attack} Nf6 {[%emt 0:00:22]} 7. Nxe4 {[%emt 0:03:09]} Nxe4 {[%emt 0:00:10]} 8. Qh5+ {[%emt 0:07:05]} g6 {[%emt 0:00:08]} 9. Qe5 {[%emt 0:00:07]} Rg8 {[%emt 0:00:55]} 10. Bxe4 $146 {[%emt 0:00:37]} ({Predecessor:} 10. dxe4 Bg7 11. Qf4 {0-1 (40) Bielmeier,L (2123)-Keller,A (1909) Bayerisch Eisenstein 2013}) 10... Bg7 {[%emt 0:01:37]} 11. Qf4 {[%emt 0:01:58]} d5 {[%emt 0:02:00]} 12. Bg2 {[%emt 0:00:12]} Qe7 {[%emt 0:02:16]} 13. O-O {[%emt 0:00:43]} e5 {[%emt 0:01:32]} 14. Qg4 {[%emt 0:00:42]} Nd7 {[%emt 0:01:15]} 15. Nc3 {[%emt 0:03:12]} c6 {[%emt 0:02:21]} 16. Re1 {[%emt 0:04:12]} O-O-O {[%emt 0:02:26]} 17. f4 {[%emt 0:08:13]} Kb8 {[%emt 0:09:15]} 18. fxe5 {[%emt 0:01:11]} Bxe5 {[%emt 0:11:49]} 19. Bg5 {[%emt 0:13:01]} Qc5+ {[%emt 0:00:25]} 20. Kh1 {[%emt 0:00:50]} h5 {[%emt 0:00:06]} 21. Qe6 {[%emt 0:01:55]} Rge8 {[%emt 0:12:31]} 22. Qf7 {[%emt 0:00:15]} Rf8 {[%emt 0:00:42]} 23. Qxg6 {[%emt 0:04:12]} Rg8 {[%emt 0:04:40]} 24. Qxh5 {[%emt 0:09:11]} Rh8 {[%emt 0:03:36]} 25. Qf3 {[%emt 0:01:21]} Rdf8 {[%emt 0:01:20]} 26. Bf4 {[%emt 0:01:39]} Ka8 {[%emt 0:01:03]} 27. Re2 {[%emt 0:05:09]} Qd6 {[%emt 0:05:01]} 28. Rf1 {[%emt 0:02:44]} Bxf4 {[%emt 0:01:48]} 29. gxf4 {[%emt 0:00:07]} Rh4 {[%emt 0:01:58]} 30. Qg3 {[%emt 0:01:43]} Rfh8 {[%emt 0:00:22]} 31. Re8+ {[%emt 0:00:37]} Rxe8 {[%emt 0:01:30]} 32. Qxh4 {[%emt 0:00:06]} Qb4 {[%emt 0:00:29]} 33. Qh7 {[%emt 0:05:03]} Nc5 {[%emt 0:01:15]} 34. Qf7 {[%emt 0:01:25]} Rh8 {[%emt 0:00:32]} 35. Qf6 {[%emt 0:01:54]} Re8 {[%emt 0:00:30]} 36. a3 {[%emt 0:01:47]} Qxb2 {[%emt 0:01:23]} 37. Nxd5 $1 {[%emt 0:00:12] Discovered Attack} Qxf6 {[%emt 0:00:07]} 38. Nxf6 {[%emt 0:00:07]} Rf8 {[%emt 0:00:08]} 39. Ne4 {[%emt 0:00:16]} Ne6 {[%emt 0:00:37]} 40. f5 {[%emt 0:01:43]} Nd4 {[%emt 0:01:28]} 41. c3 {[%emt 0:01:01]} Nc2 {[%emt 0:00:13]} 42. f6 {[%emt 0:01:39]} Ne3 {[%emt 0:00:09]} 43. Rf3 {[%emt 0:00:20]} Nxg2 {[%emt 0:02:30]} 44. Kxg2 {[%emt 0:00:11]} c5 {[%emt 0:00:03]} 45. Rf4 {[%emt 0:00:28]} c4 {[%emt 0:00:16]} 46. dxc4 {[%emt 0:00:36]} Bxe4+ 47. Rxe4 {[%emt 0:00:08]} Rxf6 {[%emt 0:00:16]} 48. Kg3 {[%emt 0:00:16]} Kb7 {[%emt 0:00:19]} 49. h4 {[%emt 0:00:19]} Rf1 {[%emt 0:00:35]} 50. h5 {[%emt 0:01:09]} Rg1+ {[%emt 0:00:11]} 51. Kf4 $18 {[%emt 0:01:03]} Kc6 {[%emt 0:01:26]} 52. Kf5 {[%emt 0:01:15]} Rh1 {[%emt 0:01:38]} 53. Kg6 {[%emt 0:00:15]} Rg1+ 54. Kh7 {[%emt 0:00:19]} Rg3 {[%emt 0:00:22]} 55. h6 {[%emt 0:00:56]} Rxc3 {[%emt 0:00:25]} 56. Kg7 {[%emt 0:00:22]} Rg3+ {[%emt 0:01:03]} 57. Kf6 {[%emt 0:01:45]} Rxa3 {[%emt 0:01:44]} 58. Rh4 {[%emt 0:01:33]} Rf3+ {[%emt 0:00:17]} 59. Kg5 {[%emt 0:00:54]} Rf8 {[%emt 0:01:23]} 60. h7 {[%emt 0:00:24]} Rh8 {[%emt 0:00:13]} 61. Kg6 {[%emt 0:00:25]} Kc5 {[%emt 0:02:24]} 62. Kg7 {[%emt 0:00:37]} Rxh7+ {[%emt 0:04:07]} 63. Kxh7 {[%emt 0:00:13]} a5 {[%emt 0:00:05]} 64. Kg6 {[%emt 0:02:51]} a4 {[%emt 0:00:10]} 65. Kf5 {[%emt 0:00:51]} a3 {[%emt 0:00:31]} 66. Rh3 {[%emt 0:02:19]} Kb4 {[%emt 0:00:24]} 1/2-1/2

[Event "HUN-chT Youth 2019"]
[Site "Budapest"]
[Date "2019.10.27"]
[Round "2.34"]
[White "Lakatos, Tamas"]
[Black "Daroczi, Donat"]
[Result "0-1"]
[ECO "C11"]
[WhiteElo "1893"]
[BlackElo "1976"]
[Annotator "NA RC"]
[PlyCount "48"]
[EventDate "2019.10.26"]
[EventType "team-tourn"]
[EventCountry "HUN"]
[SourceTitle "playchess.com"]
[Source "ChessBase"]
[SourceQuality "1"]
[TimeControl "5400+30"]

1. e4 {[%emt 0:00:00]} e6 {[%emt 0:00:00]} 2. d4 {[%emt 0:00:00]} d5 {[%emt 0:00:00]} 3. Nc3 {[%emt 0:00:00]} Nf6 {[%emt 0:00:00]} 4. e5 {[%emt 0:00:06]} Nfd7 {[%emt 0:00:00]} 5. f4 {[%emt 0:00:10]} c5 {[%emt 0:00:00]} 6. Nf3 {[%emt 0:00:12]} Nc6 {[%emt 0:00:12]} 7. Be3 {[%emt 0:00:54]} a6 {[%emt 0:00:33]} 8. Be2 {[%emt 0:01:07]} b5 {[%emt 0:00:35]} 9. O-O {[%emt 0:02:12]} Qb6 {[%emt 0:04:43]} 10. Kh1 {[%emt 0:01:02]} cxd4 {[%emt 0:04:30]} 11. Nxd4 {[%emt 0:02:30]} Bc5 {[%emt 0:01:30]} 12. Nxc6 {[%emt 0:02:00]} Bxe3 {[%emt 0:01:17]} 13. Nb4 {[%emt 0:00:17]} Bb7 {[%emt 0:03:14]} 14. f5 {[%emt 0:02:59]} d4 {[%emt 0:04:44]} 15. fxe6 {[%emt 0:01:53]} fxe6 {[%emt 0:03:18]} 16. Bd3 {[%emt 0:04:04]} dxc3 {[%emt 0:03:35]} 17. Qh5+ {[%emt 0:01:35]} Kd8 {[%emt 0:01:12]} 18. Rad1 {[%emt 0:05:22]} Kc7 {[%emt 0:02:18]} 19. Rf7 {[%emt 0:03:00]} Raf8 {[%emt 0:02:25]} 20. Bf5 {[%emt 0:02:06]} Bd4 {[%emt 0:05:08]} 21. bxc3 {[%emt 0:00:56]} g6 {[%emt 0:01:02]} 22. Rxf8 {[%emt 0:09:09]} Rxf8 {[%emt 0:01:59]} 23. Qxh7 {[%emt 0:00:32]} Rxf5 {[%emt 0:00:40]} 24. cxd4 {[%emt 0:00:06]} Qxd4 {[%emt 0:00:25]} 0-1

[Event "HUN-chT Youth 2019"]
[Site "Budapest"]
[Date "2019.10.27"]
[Round "2.35"]
[White "Kiss, Rebeka"]
[Black "Toth, Lili"]
[Result "1-0"]
[ECO "C59"]
[WhiteElo "1743"]
[BlackElo "2199"]
[Annotator "NA"]
[PlyCount "119"]
[EventDate "2019.10.26"]
[EventType "team-tourn"]
[EventCountry "HUN"]
[SourceTitle "playchess.com"]
[Source "ChessBase"]
[SourceQuality "1"]
[TimeControl "5400+30"]

1. e4 {[%emt 0:00:00]} e5 {[%emt 0:00:00]} 2. Nf3 {[%emt 0:00:00]} Nc6 {[%emt 0:00:00]} 3. Bc4 {[%emt 0:00:36]} Nf6 {[%emt 0:00:00]} 4. Ng5 {[%emt 0:01:57]} d5 {[%emt 0:00:10]} 5. exd5 {[%emt 0:00:14]} Na5 {[%emt 0:00:12]} 6. Bb5+ {[%emt 0:01:03]} c6 {[%emt 0:00:17]} 7. dxc6 {[%emt 0:00:20]} bxc6 {[%emt 0:00:19]} 8. Be2 {[%emt 0:00:19]} h6 {[%emt 0:00:20]} 9. Nf3 {[%emt 0:00:27]} e4 {[%emt 0:01:04]} 10. Ne5 {[%emt 0:00:24]} Bd6 {[%emt 0:00:12]} 11. Ng4 {[%emt 0:03:02]} Bxg4 {[%emt 0:07:46] C59: Two Knights: 4 Ng5 d5 5 exd5 Na5 5 Bb5+ c6 6 dxc6 bxc6 7 Be2} (11... O-O 12. Nc3 Nxg4 13. Bxg4 f5 14. Be2 Qe7 15. d3 Nb7 16. dxe4 Nc5 17. Bc4+ Kh7 18. Be3 Rb8 19. Rb1 {½-½ (33) Kardis,B (1932)-Ondo,T (2102) Liptovsky Mikulas 2019}) 12. Bxg4 {[%emt 0:00:11]} O-O {[%emt 0:00:24]} 13. Bh3 {[%emt 0:05:08]} Qc7 {[%emt 0:01:16]} 14. g3 {[%emt 0:00:16]} Nc4 $146 {[%emt 0:01:12]} ({Predecessor:} 14... Nd5 15. O-O Rae8 16. Bg2 f5 17. d3 Nf6 18. Nc3 exd3 19. Qxd3 {0-1 (53) Nussbaumer,L-Ivekovic,B (1954) Mureck 2009}) 15. O-O {[%emt 0:07:14]} Ne5 {[%emt 0:02:24]} 16. Bg2 {[%emt 0:00:37]} Qd7 {[%emt 0:07:58]} 17. d3 {[%emt 0:04:26]} exd3 {[%emt 0:06:53]} 18. cxd3 {[%emt 0:00:13]} Rab8 {[%emt 0:02:50]} 19. Nc3 {[%emt 0:03:47]} Bc5 {[%emt 0:01:43]} 20. Ne4 {[%emt 0:01:57]} Nxe4 {[%emt 0:01:26]} 21. dxe4 {[%emt 0:01:06]} Qd4 {[%emt 0:03:14]} 22. Qe2 {[%emt 0:08:29]} Ba3 {[%emt 0:05:01]} 23. b3 {[%emt 0:17:29]} Qxa1 {[%emt 0:03:42]} 24. Bxa3 {[%emt 0:00:10]} Qd4 {[%emt 0:00:23]} 25. Bxf8 {[%emt 0:00:11]} Rxf8 {[%emt 0:00:09]} 26. Rd1 {[%emt 0:01:07]} Qb6 {[%emt 0:00:52]} 27. Qd2 {[%emt 0:05:10]} Re8 {[%emt 0:04:12]} 28. Qd4 {[%emt 0:05:53]} Qc7 {[%emt 0:05:05]} 29. f4 {[%emt 0:04:08]} Ng6 {[%emt 0:01:22]} 30. e5 {[%emt 0:01:42]} Rc8 {[%emt 0:03:57]} 31. Kh1 {[%emt 0:02:54]} Ne7 {[%emt 0:03:29]} 32. Qd6 {[%emt 0:03:49]} Nf5 {[%emt 0:01:30]} 33. Qxc7 {[%emt 0:00:36]} Rxc7 {[%emt 0:00:08]} 34. Be4 {[%emt 0:00:14]} g6 {[%emt 0:00:21]} 35. Bxf5 {[%emt 0:01:27]} gxf5 {[%emt 0:00:09]} 36. Rd6 {[%emt 0:00:56]} Kg7 {[%emt 0:00:12]} 37. Kg2 {[%emt 0:04:35]} c5 {[%emt 0:01:46]} 38. Ra6 {[%emt 0:01:37]} Rd7 {[%emt 0:01:30]} 39. Ra5 {[%emt 0:01:43]} Rc7 $18 {[%emt 0:00:40]} 40. Kf3 {[%emt 0:02:29]} f6 {[%emt 0:03:47]} 41. Ra6 {[%emt 0:00:58]} fxe5 {[%emt 0:00:30]} 42. fxe5 {[%emt 0:00:10]} c4 {[%emt 0:07:08]} 43. bxc4 {[%emt 0:00:25]} Rxc4 {[%emt 0:00:06]} 44. Rxa7+ {[%emt 0:00:10]} Kg6 {[%emt 0:00:08]} 45. Ra6+ {[%emt 0:01:00]} Kg5 {[%emt 0:00:31]} 46. h4+ {[%emt 0:00:45]} Kh5 47. Rf6 {[%emt 0:00:51]} Ra4 {[%emt 0:00:54]} 48. Rxf5+ {[%emt 0:00:21]} Kg6 {[%emt 0:00:12]} 49. Rf4 {[%emt 0:03:33]} Rxa2 {[%emt 0:01:44]} 50. Re4 {[%emt 0:01:48]} Ra8 {[%emt 0:00:07]} 51. e6 {[%emt 0:00:32]} Re8 {[%emt 0:00:18]} 52. e7 {[%emt 0:00:33]} Kf7 {[%emt 0:00:11]} 53. Kg4 {[%emt 0:00:51]} Rxe7 {[%emt 0:00:19]} 54. Rxe7+ Kxe7 {[%emt 0:00:05]} 55. Kh5 {[%emt 0:00:15]} Kf7 {[%emt 0:00:12]} 56. Kxh6 {[%emt 0:00:09]} Kg8 {[%emt 0:00:05]} 57. g4 {[%emt 0:00:14]} Kh8 {[%emt 0:00:10]} 58. g5 {[%emt 0:00:07]} Kg8 {[%emt 0:00:23]} 59. g6 {[%emt 0:00:13]} Kh8 {[%emt 0:00:16]} 60. g7+ 1-0

[Event "HUN-chT Youth 2019"]
[Site "Budapest"]
[Date "2019.10.27"]
[Round "3.1"]
[White "Palczert, Botond"]
[Black "Krstulovic, Alex"]
[Result "0-1"]
[ECO "E20"]
[WhiteElo "2039"]
[BlackElo "2324"]
[Annotator "NA"]
[PlyCount "112"]
[EventDate "2019.10.26"]
[EventType "team-tourn"]
[EventCountry "HUN"]
[SourceTitle "playchess.com"]
[Source "ChessBase"]
[SourceQuality "1"]
[TimeControl "5400+30"]

1. d4 {[%emt 0:00:00]} Nf6 {[%emt 0:00:48]} 2. c4 {[%emt 0:00:00]} e6 {[%emt 0:00:03]} 3. Nc3 {[%emt 0:00:25]} Bb4 {[%emt 0:01:32]} 4. Bd2 {[%emt 0:02:01]} b6 {[%emt 0:06:05]} 5. e3 {[%emt 0:00:36]} Bb7 {[%emt 0:00:12]} 6. Nf3 {[%emt 0:00:18]} O-O {[%emt 0:00:43]} 7. Bd3 {[%emt 0:01:42]} d6 {[%emt 0:05:30]} 8. O-O {[%emt 0:01:07]} Nbd7 {[%emt 0:00:19]} 9. a3 {[%emt 0:03:48]} Bxc3 {[%emt 0:00:40]} 10. Bxc3 {[%emt 0:00:02]} Ne4 {[%emt 0:00:09]} 11. Be1 {[%emt 0:00:24]} f5 {[%emt 0:01:57]} 12. Nd2 {[%emt 0:01:02]} Qf6 {[%emt 0:05:50]} 13. f3 {[%emt 0:04:39]} Nxd2 14. Qxd2 {[%emt 0:00:03]} Rae8 {[%emt 0:08:45]} 15. Bg3 {[%emt 0:11:22]} Qh6 {[%emt 0:15:53]} 16. b4 {[%emt 0:03:39]} e5 {[%emt 0:05:47]} 17. d5 {[%emt 0:02:18]} c5 {[%emt 0:07:22]} 18. dxc6 {[%emt 0:10:27]} Bxc6 {[%emt 0:00:07]} 19. Rad1 {[%emt 0:01:14]} Ba4 {[%emt 0:02:35]} 20. Rde1 {[%emt 0:00:21]} Rc8 {[%emt 0:00:52]} 21. Rc1 {[%emt 0:16:42]} Bc6 {[%emt 0:09:03]} 22. Bc2 {[%emt 0:02:42]} Kh8 {[%emt 0:02:20]} 23. Rcd1 {[%emt 0:05:56]} Rf6 {[%emt 0:00:24]} 24. Qe2 {[%emt 0:01:13]} Qh5 {[%emt 0:06:33]} 25. Rd2 {[%emt 0:02:40]} f4 {[%emt 0:02:20]} 26. Bf2 {[%emt 0:01:41]} Rh6 {[%emt 0:00:55]} 27. h3 {[%emt 0:00:38]} Qg5 {[%emt 0:00:15]} 28. Kh2 {[%emt 0:01:42]} Nf6 {[%emt 0:01:36]} 29. exf4 {[%emt 0:05:50]} exf4 {[%emt 0:01:46]} 30. Rd4 {[%emt 0:03:51]} Nh5 {[%emt 0:09:23]} 31. Qe1 {[%emt 0:12:27]} Re8 {[%emt 0:01:22]} 32. Be4 {[%emt 0:00:51]} Nf6 {[%emt 0:01:00]} 33. Bxc6 {[%emt 0:01:29]} Rxe1 {[%emt 0:00:06]} 34. Rxe1 {[%emt 0:00:03]} Rg6 {[%emt 0:00:37]} 35. Rg1 {[%emt 0:00:48]} h5 {[%emt 0:00:20]} 36. h4 {[%emt 0:00:37]} Qf5 {[%emt 0:00:34]} 37. Be4 {[%emt 0:00:38]} Nxe4 {[%emt 0:00:09]} 38. Rxe4 {[%emt 0:00:02]} d5 {[%emt 0:01:19]} 39. cxd5 Qxd5 {[%emt 0:00:04]} 40. Rge1 {[%emt 0:01:53]} Qa2 {[%emt 0:00:47]} 41. R1e2 {[%emt 0:00:46]} Qxa3 {[%emt 0:00:06]} 42. Bd4 {[%emt 0:00:54]} Kh7 {[%emt 0:01:33]} 43. Be5 {[%emt 0:00:34]} Rc6 {[%emt 0:03:17]} 44. Bxf4 {[%emt 0:01:00]} b5 {[%emt 0:00:23]} 45. Re5 {[%emt 0:00:38]} Qxb4 {[%emt 0:00:04]} 46. Rxh5+ {[%emt 0:00:16]} Kg6 {[%emt 0:00:30]} 47. Rg5+ {[%emt 0:00:02]} Kf7 {[%emt 0:00:12]} 48. g3 {[%emt 0:00:59]} Qc4 {[%emt 0:00:23]} 49. Rge5 {[%emt 0:00:14]} b4 {[%emt 0:00:32]} 50. Re7+ {[%emt 0:00:45]} Kg8 {[%emt 0:00:04]} 51. Re8+ {[%emt 0:00:08]} Kh7 {[%emt 0:00:06]} 52. R2e5 {[%emt 0:00:32]} Qf1 {[%emt 0:00:20]} 53. Re2 {[%emt 0:01:31]} b3 {[%emt 0:00:10]} 54. h5 {[%emt 0:00:52]} Rc2 {[%emt 0:00:28]} 55. Bd2 {[%emt 0:00:02]} b2 {[%emt 0:00:16]} 56. h6 {[%emt 0:00:57]} b1=Q {[%emt 0:00:12]} 0-1

[Event "HUN-chT Youth 2019"]
[Site "Budapest"]
[Date "2019.10.27"]
[Round "3.1"]
[White "Szabo, Marton Nandor"]
[Black "Palczert, Matyas"]
[Result "0-1"]
[ECO "E06"]
[WhiteElo "1803"]
[BlackElo "2009"]
[Annotator "NA"]
[PlyCount "102"]
[EventDate "2019.10.26"]
[EventType "team-tourn"]
[EventCountry "HUN"]
[SourceTitle "playchess.com"]
[Source "ChessBase"]
[SourceQuality "1"]
[TimeControl "5400+30"]

1. Nf3 {[%emt 0:00:00]} Nf6 {[%emt 0:00:00]} 2. c4 {[%emt 0:00:00]} e6 {[%emt 0:00:09]} 3. d4 d5 {[%emt 0:00:53]} 4. g3 {[%emt 0:00:07]} Be7 {[%emt 0:00:09]} 5. Bg2 {[%emt 0:00:08]} O-O {[%emt 0:00:16]} 6. O-O {[%emt 0:00:31]} dxc4 {[%emt 0:00:21]} 7. Qc2 {[%emt 0:00:21]} a6 {[%emt 0:00:28]} 8. Qxc4 {[%emt 0:00:06]} b5 {[%emt 0:00:23]} 9. Qc2 {[%emt 0:00:18]} Bb7 {[%emt 0:00:35]} 10. Bg5 {[%emt 0:00:09]} Nbd7 {[%emt 0:00:57]} 11. Bxf6 {[%emt 0:00:22]} Nxf6 {[%emt 0:00:21]} 12. Nbd2 {[%emt 0:00:09]} Rc8 {[%emt 0:01:12]} 13. Nb3 {[%emt 0:00:14]} c5 {[%emt 0:01:04]} 14. dxc5 {[%emt 0:02:07]} Be4 {[%emt 0:02:02]} 15. Qc1 {[%emt 0:01:44]} Bd5 {[%emt 0:01:14]} 16. Rd1 {[%emt 0:01:23]} Ne4 {[%emt 0:11:56]} 17. Qf4 {[%emt 0:19:09]} Qc7 {[%emt 0:06:03]} 18. Qxc7 {[%emt 0:02:35]} Rxc7 {[%emt 0:00:05]} 19. Nfd2 {[%emt 0:00:43]} Nxc5 {[%emt 0:06:06]} 20. Bxd5 {[%emt 0:05:25]} exd5 {[%emt 0:00:07]} 21. Rac1 {[%emt 0:04:26]} Rfc8 {[%emt 0:01:15]} 22. Nxc5 {[%emt 0:00:56]} Rxc5 {[%emt 0:01:55]} 23. Rxc5 {[%emt 0:00:48]} Rxc5 {[%emt 0:01:15]} 24. Nb3 {[%emt 0:00:08]} Rc2 {[%emt 0:00:44]} 25. Rd2 {[%emt 0:00:24]} Rxd2 {[%emt 0:01:25]} 26. Nxd2 {[%emt 0:00:02]} Bf6 {[%emt 0:00:10]} 27. b3 {[%emt 0:00:11]} Kf8 {[%emt 0:00:58]} 28. Kg2 {[%emt 0:02:44]} Bc3 {[%emt 0:07:35]} 29. Nf1 {[%emt 0:05:21]} d4 {[%emt 0:01:13]} 30. Kf3 {[%emt 0:03:44]} f5 {[%emt 0:01:30]} 31. e4 {[%emt 0:14:07]} g6 {[%emt 0:02:28]} 32. exf5 {[%emt 0:04:36]} gxf5 {[%emt 0:00:30]} 33. Kf4 {[%emt 0:00:39]} Ke7 {[%emt 0:10:04]} 34. Kxf5 {[%emt 0:01:01]} Kd6 {[%emt 0:00:24]} 35. Ke4 {[%emt 0:00:08]} Kc5 {[%emt 0:00:22]} 36. f4 {[%emt 0:07:54]} Kb4 {[%emt 0:01:18]} 37. f5 {[%emt 0:00:47]} Ka3 {[%emt 0:00:11]} 38. f6 {[%emt 0:00:15]} Kxa2 {[%emt 0:00:28]} 39. f7 {[%emt 0:00:09]} Bb4 {[%emt 0:00:09]} 40. Nd2 {[%emt 0:00:13]} Bc5 {[%emt 0:09:55]} 41. Kd5 {[%emt 0:03:25]} Bf8 {[%emt 0:00:29]} 42. Kxd4 {[%emt 0:00:15]} Kb2 {[%emt 0:04:03]} 43. Kd3 {[%emt 0:00:14]} a5 {[%emt 0:01:10]} 44. h4 {[%emt 0:11:26]} h5 {[%emt 0:02:28]} 45. Nc4+ {[%emt 0:00:27]} bxc4+ {[%emt 0:00:52]} 46. Kxc4 Bb4 47. Kb5 {[%emt 0:01:20]} Kxb3 {[%emt 0:00:46]} 48. f8=Q {[%emt 0:00:09]} Bxf8 {[%emt 0:00:07]} 49. Kxa5 {[%emt 0:00:02]} Kc4 50. Kb6 Kd5 {[%emt 0:01:18]} 51. Kc7 {[%emt 0:01:41]} Bd6+ {[%emt 0:00:40]} 0-1

[Event "HUN-chT Youth 2019"]
[Site "Budapest"]
[Date "2019.10.27"]
[Round "3.2"]
[White "Losonczi, Marcell"]
[Black "Kozsik, Bende Barnabas"]
[Result "1-0"]
[ECO "B41"]
[WhiteElo "2249"]
[BlackElo "1943"]
[Annotator "NA"]
[PlyCount "118"]
[EventDate "2019.10.26"]
[EventType "team-tourn"]
[EventCountry "HUN"]
[SourceTitle "playchess.com"]
[Source "ChessBase"]
[SourceQuality "1"]
[TimeControl "5400+30"]

1. e4 {[%emt 0:00:00]} c5 {[%emt 0:00:00]} 2. Nf3 {[%emt 0:00:00]} e6 {[%emt 0:00:00]} 3. d4 {[%emt 0:00:00]} cxd4 {[%emt 0:00:03]} 4. Nxd4 {[%emt 0:00:00]} a6 {[%emt 0:00:50]} 5. c4 {[%emt 0:00:03]} Nf6 {[%emt 0:00:32]} 6. Nc3 {[%emt 0:00:07]} Qc7 {[%emt 0:00:28]} 7. Be3 {[%emt 0:02:00]} Bb4 {[%emt 0:01:25]} 8. Nc2 {[%emt 0:02:15]} Bxc3+ {[%emt 0:04:14]} 9. bxc3 {[%emt 0:00:06]} O-O {[%emt 0:02:00]} 10. Bd3 {[%emt 0:29:52]} d5 {[%emt 0:05:12]} 11. exd5 {[%emt 0:03:28]} exd5 {[%emt 0:01:51]} 12. c5 {[%emt 0:03:24]} Nc6 {[%emt 0:08:32]} 13. h3 {[%emt 0:05:54]} Qa5 {[%emt 0:03:25]} 14. Qd2 {[%emt 0:02:25]} Ne4 {[%emt 0:01:40]} 15. Bxe4 {[%emt 0:00:07]} dxe4 {[%emt 0:00:10]} 16. Nb4 {[%emt 0:05:49]} Be6 {[%emt 0:02:49]} 17. O-O {[%emt 0:10:21]} Rad8 {[%emt 0:04:48]} 18. Nxc6 {[%emt 0:00:23]} bxc6 {[%emt 0:00:10]} 19. Bd4 {[%emt 0:00:37]} f6 {[%emt 0:16:00]} 20. Qf4 {[%emt 0:02:40]} Bd5 {[%emt 0:03:24]} 21. Rfb1 {[%emt 0:02:36]} Rde8 {[%emt 0:01:44]} 22. Rb7 {[%emt 0:04:35]} Rf7 {[%emt 0:03:10]} 23. Rb2 {[%emt 0:07:21]} Qa3 {[%emt 0:05:39]} 24. Rab1 {[%emt 0:04:54]} Rfe7 {[%emt 0:10:30]} 25. Rb8 {[%emt 0:02:42]} e3 {[%emt 0:10:45]} 26. R1b7 {[%emt 0:05:34]} exf2+ {[%emt 0:02:46]} 27. Qxf2 {[%emt 0:00:13]} Qc1+ {[%emt 0:02:19]} 28. Kh2 {[%emt 0:00:11]} Qg5 {[%emt 0:02:51]} 29. Rxe7 {[%emt 0:01:38]} Rxb8 {[%emt 0:00:09]} 30. Re3 {[%emt 0:00:45]} Rb7 {[%emt 0:02:44]} 31. Rg3 {[%emt 0:00:44]} Qh6 {[%emt 0:00:48]} 32. Be3 {[%emt 0:03:41]} g5 {[%emt 0:00:30]} 33. Qf5 {[%emt 0:00:31]} Rf7 {[%emt 0:01:15]} 34. Bd4 {[%emt 0:00:34]} Qg6 {[%emt 0:00:26]} 35. Qc8+ {[%emt 0:00:41]} Kg7 {[%emt 0:00:35]} 36. Qxa6 {[%emt 0:00:31]} h5 {[%emt 0:00:31]} 37. a4 {[%emt 0:01:10]} g4 {[%emt 0:00:40]} 38. Qe2 {[%emt 0:00:16]} Kf8 {[%emt 0:01:07]} 39. a5 {[%emt 0:00:32]} f5 {[%emt 0:01:13]} 40. Re3 {[%emt 0:00:35]} Be4 {[%emt 0:00:24]} 41. a6 {[%emt 0:00:21]} Re7 {[%emt 0:00:32]} 42. Qf2 {[%emt 0:00:24]} gxh3 {[%emt 0:01:05]} 43. a7 {[%emt 0:00:39]} Rxa7 {[%emt 0:00:54]} 44. Rxe4 {[%emt 0:00:06]} Qxg2+ {[%emt 0:01:14]} 45. Qxg2 {[%emt 0:00:04]} hxg2 {[%emt 0:00:03]} 46. Rf4 {[%emt 0:00:25]} Rf7 {[%emt 0:00:20]} 47. Kxg2 {[%emt 0:00:06]} Ke7 {[%emt 0:00:12]} 48. Rh4 {[%emt 0:00:22]} Rh7 {[%emt 0:00:07]} 49. Kf3 {[%emt 0:00:04]} Kf7 {[%emt 0:00:40]} 50. Kf4 {[%emt 0:00:20]} Kg6 {[%emt 0:00:08]} 51. Rh3 {[%emt 0:01:14]} Rf7 {[%emt 0:00:30]} 52. Rg3+ {[%emt 0:00:06]} Kh6 {[%emt 0:00:05]} 53. Rg8 {[%emt 0:00:13]} Kh7 {[%emt 0:00:24]} 54. Rc8 {[%emt 0:00:48]} h4 {[%emt 0:00:12]} 55. Rxc6 {[%emt 0:00:06]} h3 {[%emt 0:00:07]} 56. Rc8 {[%emt 0:00:08]} Kg6 {[%emt 0:00:20]} 57. Rg8+ {[%emt 0:00:09]} Kh6 {[%emt 0:00:17]} 58. Rh8+ {[%emt 0:00:07]} Rh7 {[%emt 0:00:08]} 59. Rxh7+ {[%emt 0:00:06]} Kxh7 {[%emt 0:00:05] Ke4} 1-0

[Event "HUN-chT Youth 2019"]
[Site "Budapest"]
[Date "2019.10.27"]
[Round "3.2"]
[White "Hajdu, Marton Abris"]
[Black "Foldes, Marton Gabor"]
[Result "1/2-1/2"]
[ECO "A46"]
[WhiteElo "1818"]
[BlackElo "1755"]
[Annotator "NA"]
[PlyCount "34"]
[EventDate "2019.10.26"]
[EventType "team-tourn"]
[EventCountry "HUN"]
[SourceTitle "playchess.com"]
[Source "ChessBase"]
[SourceQuality "1"]
[TimeControl "5400+30"]

1. d4 {[%emt 0:00:00]} Nf6 {[%emt 0:00:00]} 2. Nf3 {[%emt 0:00:08]} e6 {[%emt 0:00:00]} 3. e3 {[%emt 0:00:13]} c5 {[%emt 0:01:03]} 4. b3 {[%emt 0:00:11]} d5 {[%emt 0:00:38]} 5. Bb2 {[%emt 0:00:13]} Nc6 {[%emt 0:00:39]} 6. Nbd2 {[%emt 0:01:06]} cxd4 {[%emt 0:01:49]} 7. exd4 Bd6 {[%emt 0:00:45]} 8. a3 {[%emt 0:02:30]} O-O {[%emt 0:05:18]} 9. Bd3 {[%emt 0:01:07]} Qc7 {[%emt 0:04:25]} 10. O-O e5 {[%emt 0:07:40]} 11. dxe5 {[%emt 0:02:38]} Nxe5 {[%emt 0:00:14]} 12. Re1 {[%emt 0:03:21]} Nxd3 {[%emt 0:06:56]} 13. cxd3 {[%emt 0:00:16]} Qd8 {[%emt 0:00:44]} 14. d4 {[%emt 0:10:53]} Bg4 {[%emt 0:02:49]} 15. Qc2 {[%emt 0:09:25]} Rc8 {[%emt 0:01:26]} 16. Qd3 {[%emt 0:01:31]} Bh5 {[%emt 0:09:54]} 17. Ne5 {[%emt 0:01:35]} Bg6 {[%emt 0:13:57]} 1/2-1/2